fUST/lending_fUST_20241114
["ID","MTS","AMOUNT","RATE_DAILY","PERIOD"]
[342180448,1731550031135,-250.0,0.00018453,2]
[342180449,1731550031154,-213.22611343,0.000185,2]
[342180450,1731550031175,-541.9056326,0.0001852,2]
[342180451,1731550031194,-300.0,0.00018576,2]
[342180452,1731550031331,-300.0,0.00018576,2]
[342180453,1731550031353,-36.79623959,0.00018577,2]
[342180454,1731550033062,-786.30386927,0.00018577,2]
[342180455,1731550040063,-3158.25532929,0.00018577,2]
[342180459,1731550166065,-6771.74355479,0.00017899,2]
[342180461,1731550173073,-637.6124677,0.00017899,2]
[342180462,1731550173095,-391.49190389,0.00018003,2]
[342180463,1731550173118,-300.0,0.00018102,2]
[342180464,1731550173140,-300.0,0.00018102,2]
[342180465,1731550173161,-2273.64911918,0.00018103,2]
[342180523,1731550238843,-1062.84216975,0.00017619,2]
[342180526,1731550238858,-213.91922025,0.00017619,2]
[342180528,1731550238871,-2300.01731156,0.000184,2]
[342180531,1731550238884,-736.25752219,0.000184,2]
[342180569,1731550243672,-46.72628555,0.000184,2]
[342180571,1731550243683,-300.0,0.00018422,2]
[342180573,1731550243694,-300.0,0.00018422,2]
[342180574,1731550243706,-1393.91593601,0.00018423,2]
[342180577,1731550243876,-10176.62086827,0.00018423,2]
[342180588,1731550418594,4018.88,0.00027,60]
[342180593,1731550607680,10032.12744375,0.00027,60]
[342180597,1731550766407,158.327,0.0002666,60]
[342180600,1731550817070,153.13086016,0.00027,60]
[342180602,1731550937891,1499.27,0.00027,60]
[342180606,1731551323421,4202.20924526,0.00021,60]
[342180661,1731551432005,-500.0,0.00016255,2]
[342180662,1731551432014,-181.2266735,0.00016322,2]
[342180663,1731551432027,-333.9277305,0.00016322,2]
[342180664,1731551432036,-203.0078334,0.00016384,2]
[342180665,1731551432045,-14.5629651,0.00016457,2]
[342180666,1731551432494,-623.8177299,0.00016457,2]
[342180667,1731551432504,-3000.0,0.00016866,2]
[342180668,1731551432513,-359.61190666,0.00016907,2]
[342180669,1731551432522,-515.154404,0.00017007,2]
[342180670,1731551432531,-359.61190666,0.00017045,2]
[342180671,1731551432540,-300.0,0.00017113,2]
[342180672,1731551432549,-300.0,0.00017113,2]
[342180673,1731551432558,-24900.0,0.00017114,2]
[342180674,1731551432567,-2012.51514758,0.00017183,2]
[342180675,1731551432576,-359.61190666,0.00017183,2]
[342180676,1731551432585,-627.9669201,0.00017283,2]
[342180677,1731551432594,-183.7367253,0.00017425,2]
[342180678,1731551432604,-152.0,0.00017594,2]
[342180679,1731551432613,-515.154404,0.00017692,2]
[342180680,1731551432625,-152.61521315,0.00017759,2]
[342180681,1731551432634,-8760.79964795,0.0001776,2]
[342180735,1731551442882,-2235.41648923,0.0001776,2]
[342180736,1731551442907,-128.15840939,0.0001776,2]
[342180737,1731551442919,-776.30030003,0.0001776,2]
[342180738,1731551442929,-2225.15428991,0.0001776,2]
[342180739,1731551442939,-95.17537682,0.00017916,2]
[342180740,1731551443000,-330.23400723,0.00017916,2]
[342180741,1731551443010,-994.17599277,0.00018341,2]
[342180779,1731552545081,-339.05215797,0.00016255,2]
[342180780,1731552545105,-500.0,0.00017109,2]
[342180781,1731552545125,-1215.910071,0.00017261,2]
[342180782,1731552545146,-300.0,0.00017545,2]
[342180783,1731552545167,-300.0,0.00017545,2]
[342180784,1731552545188,-1373.88120233,0.00017546,2]
[342180861,1731552632869,-300.0,0.00017545,2]
[342180862,1731552632878,-203.19000379,0.00017545,2]
[342180863,1731552632893,-96.80999621,0.00017545,2]
[342180864,1731552632902,-3881.87086646,0.00017546,2]
[342180865,1731552632914,-516.1327671,0.00017546,2]
[342180880,1731552638150,-534.46,0.00017546,2]
[342180882,1731552638364,-995.93668275,0.00017546,2]
[342180918,1731552643219,-9508.44150945,0.00017546,2]
[342180928,1731552646242,-477.50372888,0.00017546,2]
[342180935,1731552840992,187.6088226,0.00027,60]
[342180945,1731553409560,158.373,0.0002575,60]
[342180963,1731553832998,-1376.831691,0.00016315,2]
[342180964,1731553833008,-319.190347,0.00016386,2]
[342180965,1731553833018,-1376.831691,0.00017,2]
[342180966,1731553833029,-1000.0,0.00017,2]
[342180967,1731553833038,-905.6102621,0.00017096,2]
[342180968,1731553833047,-201.57267244,0.00017105,2]
[342180969,1731553833057,-2005.81190136,0.0001714,2]
[342180970,1731553833067,-201.57267244,0.00017173,2]
[342180971,1731553833078,-300.0,0.00017205,2]
[342180972,1731553833092,-300.0,0.00017205,2]
[342180973,1731553833102,-10020.77876266,0.00017206,2]
[342181009,1731553838344,-507.9999998,0.00017206,2]
[342181050,1731553843287,-72.18085585,0.00017206,2]
[342181126,1731553983970,3000.0,0.00027,60]
[342181130,1731554320833,264.5459407,0.00027,60]
[342181131,1731554326686,-200.0,0.000284,120]
[342181132,1731554326718,-151.0,0.000292,120]
[342181133,1731554326749,-200.0,0.000298,120]
[342181134,1731554327037,-200.0,0.0003,120]
[342181135,1731554327059,-151.0,0.0003,120]
[342181136,1731554327081,-200.0,0.0003,120]
[342181137,1731554327103,-1498.0,0.0003,120]
[342181140,1731554952121,-300.0,0.00016059,2]
[342181141,1731554952145,-6346.14831359,0.0001606,2]
[342181189,1731555035171,-201.57267244,0.00016038,2]
[342181190,1731555035181,-300.0,0.00016059,2]
[342181191,1731555035190,-213.50345895,0.00016059,2]
[342181192,1731555035202,-86.49654105,0.00016059,2]
[342181193,1731555035211,-294.50344895,0.0001606,2]
[342181194,1731555035222,-898.88488263,0.0001606,2]
[342181237,1731555038634,-973.22448128,0.0001606,2]
[342181238,1731555038647,-992.21303997,0.0001606,2]
[342181242,1731555040371,-5144.85084475,0.0001606,2]
[342181250,1731555043466,-10250.17498883,0.0001606,2]
[342181251,1731555043476,-250.0,0.00016138,2]
[342181252,1731555043486,-541.9056326,0.00016196,2]
[342181255,1731555043495,-159.595174,0.00016212,2]
[342181257,1731555043505,-458.943897,0.00016348,2]
[342181259,1731555043514,-7127.2618197,0.00016904,2]
[342181262,1731555043523,-458.943897,0.00017033,2]
[342181264,1731555043533,-2235.4164893,0.00017199,2]
[342181265,1731555043543,-214.40558589,0.000173,2]
[342181266,1731555043552,-1755.08541369,0.000174,2]
[342181267,1731555043563,-819.46288072,0.000175,2]
[342181268,1731555043572,-500.0,0.000175,2]
[342181269,1731555043583,-151.0,0.00017557,2]
[342181270,1731555043593,-151.0,0.00017557,2]
[342181271,1731555043602,-741.371731,0.00017557,2]
[342181272,1731555043611,-741.371731,0.00017557,2]
[342181273,1731555043620,-420.0,0.00017557,2]
[342181274,1731555043629,-534.53659,0.00017557,2]
[342181275,1731555043648,-534.53659,0.00017557,2]
[342181276,1731555043659,-258.6373018,0.00017577,2]
[342181277,1731555043669,-198.78372767,0.00017585,2]
[342181278,1731555043678,-420.0,0.00017665,2]
[342181279,1731555043688,-2710.08428277,0.00017685,2]
[342181280,1731555043698,-151.0,0.00017685,2]
[342181281,1731555043708,-151.0,0.00017685,2]
[342181282,1731555043717,-151.0,0.00017685,2]
[342181283,1731555043727,-151.0,0.00017685,2]
[342181284,1731555043737,-151.0,0.00017685,2]
[342181285,1731555043746,-554.300893,0.00017685,2]
[342181286,1731555043756,-554.300893,0.00017685,2]
[342181287,1731555043766,-1452.429702,0.00017685,2]
[342181288,1731555043776,-1452.429702,0.00017685,2]
[342181289,1731555043785,-151.0,0.00017685,2]
[342181290,1731555043796,-151.0,0.00017685,2]
[342181291,1731555043805,-151.0,0.00017685,2]
[342181292,1731555043815,-151.0,0.00017685,2]
[342181293,1731555043824,-151.0,0.00017685,2]
[342181294,1731555043834,-742.762776,0.00017685,2]
[342181295,1731555043843,-742.762776,0.00017685,2]
[342181296,1731555043852,-152.618325,0.00017685,2]
[342181297,1731555043862,-152.062188,0.00017685,2]
[342181298,1731555043872,-1285.61948,0.00017685,2]
[342181299,1731555043881,-1285.61948,0.00017685,2]
[342181300,1731555043891,-151.0,0.00017685,2]
[342181301,1731555043902,-151.0,0.00017685,2]
[342181302,1731555043912,-151.0,0.00017685,2]
[342181303,1731555043922,-482.309886,0.00017685,2]
[342181304,1731555043931,-482.309886,0.00017685,2]
[342181305,1731555043941,-473.431285,0.00017685,2]
[342181306,1731555043951,-473.431285,0.00017685,2]
[342181307,1731555043960,-482.309886,0.00017685,2]
[342181308,1731555043970,-482.309886,0.00017685,2]
[342181309,1731555043979,-473.431285,0.00017685,2]
[342181310,1731555043988,-473.431285,0.00017685,2]
[342181311,1731555043998,-435.85167,0.00017685,2]
[342181312,1731555044007,-435.85167,0.00017685,2]
[342181313,1731555044017,-435.85167,0.00017685,2]
[342181314,1731555044026,-435.85167,0.00017685,2]
[342181315,1731555044036,-151.0,0.00017685,2]
[342181316,1731555044045,-152.331131,0.00017685,2]
[342181317,1731555044054,-151.0,0.00017685,2]
[342181318,1731555044064,-151.0,0.00017685,2]
[342181319,1731555044074,-295.937984,0.00017685,2]
[342181320,1731555044086,-151.0,0.00017685,2]
[342181321,1731555044096,-151.0,0.00017685,2]
[342181322,1731555044105,-151.0,0.00017685,2]
[342181323,1731555044115,-151.0,0.00017685,2]
[342181324,1731555044126,-151.0,0.00017685,2]
[342181325,1731555044135,-151.0,0.00017685,2]
[342181326,1731555044145,-447.238423,0.00017685,2]
[342181327,1731555044155,-447.238423,0.00017685,2]
[342181328,1731555044165,-447.238423,0.00017685,2]
[342181329,1731555044175,-447.238423,0.00017685,2]
[342181330,1731555044186,-156.017043,0.00017685,2]
[342181331,1731555044195,-151.0,0.00017685,2]
[342181332,1731555044205,-151.0,0.00017685,2]
[342181333,1731555044214,-153.459821,0.00017685,2]
[342181334,1731555044224,-174.128582,0.00017685,2]
[342181335,1731555044233,-174.128582,0.00017685,2]
[342181336,1731555044243,-174.128582,0.00017685,2]
[342181337,1731555044252,-174.128582,0.00017685,2]
[342181338,1731555044261,-151.0,0.00017685,2]
[342181339,1731555044271,-151.0,0.00017685,2]
[342181340,1731555044280,-151.0,0.00017685,2]
[342181341,1731555044289,-151.0,0.00017685,2]
[342181342,1731555044299,-151.0,0.00017685,2]
[342181343,1731555044308,-151.0,0.00017685,2]
[342181344,1731555044318,-151.0,0.00017685,2]
[342181345,1731555044330,-741.371731,0.00017685,2]
[342181346,1731555044339,-741.371731,0.00017685,2]
[342181347,1731555044348,-741.371731,0.00017685,2]
[342181348,1731555044357,-741.371731,0.00017685,2]
[342181349,1731555044367,-741.371731,0.00017685,2]
[342181350,1731555044377,-741.371731,0.00017685,2]
[342181351,1731555044386,-887.508695,0.00017685,2]
[342181352,1731555044396,-887.508695,0.00017685,2]
[342181353,1731555044405,-887.508695,0.00017685,2]
[342181354,1731555044414,-887.508695,0.00017685,2]
[342181355,1731555044423,-534.53659,0.00017685,2]
[342181356,1731555044434,-534.53659,0.00017685,2]
[342181357,1731555044443,-534.53659,0.00017685,2]
[342181358,1731555044455,-534.53659,0.00017685,2]
[342181359,1731555044465,-534.53659,0.00017685,2]
[342181360,1731555044474,-534.53659,0.00017685,2]
[342181361,1731555044483,-534.53659,0.00017685,2]
[342181362,1731555044493,-534.53659,0.00017685,2]
[342181363,1731555044502,-182.4849294,0.00017706,2]
[342181364,1731555044511,-151.0,0.00017706,2]
[342181365,1731555044521,-741.371731,0.00017706,2]
[342181366,1731555044530,-741.371731,0.00017706,2]
[342181367,1731555044539,-503.59781949,0.00017708,2]
[342181368,1731555044548,-458.943897,0.00017718,2]
[342181369,1731555044558,-152.594596,0.00017808,2]
[342181370,1731555044567,-505.46100533,0.00017875,2]
[342181371,1731555044577,-500.73948384,0.00017875,2]
[342181372,1731555044586,-500.0,0.00017875,2]
[342181373,1731555044595,-500.95623618,0.00017875,2]
[342181374,1731555044605,-531.92846396,0.00017875,2]
[342181375,1731555044614,-534.53659,0.00017933,2]
[342181376,1731555044623,-534.53659,0.00017933,2]
[342181377,1731555044632,-502.55455075,0.00017933,2]
[342181378,1731555044641,-500.73041998,0.00017933,2]
[342181379,1731555044650,-500.0,0.00017933,2]
[342181380,1731555044659,-504.34970802,0.00017933,2]
[342181381,1731555044669,-502.06001991,0.00017933,2]
[342181382,1731555044678,-500.0,0.00018009,2]
[342181383,1731555044687,-151.0,0.00018009,2]
[342181384,1731555044697,-151.0,0.00018009,2]
[342181385,1731555044706,-151.0,0.00018009,2]
[342181386,1731555044715,-174.128582,0.00018009,2]
[342181387,1731555044724,-174.128582,0.00018009,2]
[342181388,1731555044733,-198.78372766,0.00018204,2]
[342181389,1731555044743,-1499.60929017,0.0001834,2]
[342181390,1731555044751,-152.840933,0.0001834,2]
[342181391,1731555044761,-151.0,0.0001834,2]
[342181392,1731555044770,-151.0,0.0001834,2]
[342181393,1731555044779,-554.300893,0.0001834,2]
[342181394,1731555044788,-554.300893,0.0001834,2]
[342181395,1731555044797,-151.0,0.0001834,2]
[342181396,1731555044807,-151.0,0.0001834,2]
[342181397,1731555044816,-151.0,0.0001834,2]
[342181398,1731555044826,-151.0,0.0001834,2]
[342181399,1731555044836,-151.0,0.0001834,2]
[342181400,1731555044846,-473.431285,0.0001834,2]
[342181401,1731555044855,-473.431285,0.0001834,2]
[342181402,1731555044865,-435.85167,0.0001834,2]
[342181403,1731555044874,-435.85167,0.0001834,2]
[342181404,1731555044884,-151.0,0.0001834,2]
[342181405,1731555044894,-447.238423,0.0001834,2]
[342181406,1731555044903,-447.238423,0.0001834,2]
[342181407,1731555044912,-151.0,0.0001834,2]
[342181408,1731555044922,-151.0000005,0.0001834,2]
[342181409,1731555044931,-151.0,0.0001834,2]
[342181410,1731555044940,-741.371731,0.0001834,2]
[342181411,1731555044951,-741.371731,0.0001834,2]
[342181412,1731555044960,-887.508695,0.0001834,2]
[342181413,1731555044969,-887.508695,0.0001834,2]
[342181414,1731555044979,-534.53659,0.0001834,2]
[342181415,1731555044989,-534.53659,0.0001834,2]
[342181416,1731555044998,-534.53659,0.0001834,2]
[342181417,1731555045007,-534.53659,0.0001834,2]
[342181418,1731555045017,-506.80206668,0.00018423,2]
[342181419,1731555045026,-302.36637322,0.00018481,2]
[342181420,1731555045035,-151.0,0.00018823,2]
[342181421,1731555045045,-482.309886,0.00018823,2]
[342181422,1731555045054,-482.309886,0.00018823,2]
[342181423,1731555045063,-151.0,0.00018823,2]
[342181424,1731555045072,-151.0,0.00018823,2]
[342181425,1731555045084,-151.967015,0.00018823,2]
[342181426,1731555045093,-174.128582,0.00018823,2]
[342181427,1731555045102,-174.128582,0.00018823,2]
[342181428,1731555045111,-260.215227,0.00018823,2]
[342181429,1731555045121,-198.78372766,0.00018823,2]
[342181430,1731555045130,-741.371731,0.00018823,2]
[342181431,1731555045140,-741.371731,0.00018823,2]
[342181432,1731555045149,-1204.05507452,0.00018824,2]
[342181434,1731555046551,-614.42877901,0.00018824,2]
[342181436,1731555498164,1133.97,0.00010959,2]
[342181437,1731555508634,944.98,0.00010959,2]
[342181438,1731555519145,787.48,0.00010959,2]
[342181439,1731555540510,656.23,0.00010959,2]
[342181440,1731555551344,546.86,0.00010959,2]
[342181441,1731555561942,455.72,0.00010959,2]
[342181442,1731555572433,379.76,0.00010959,2]
[342181443,1731555582914,379.76,0.00010959,2]
[342181444,1731555593405,253.18,0.00010959,2]
[342181445,1731555603890,210.98,0.00010959,2]
[342181447,1731555614401,175.82,0.00010959,2]
[342181448,1731555624876,879.11,0.00010959,2]
[342181449,1731555634759,200.0,0.00027,120]
[342181450,1731555692248,2706.6258686,0.00027,60]
[342181451,1731555748104,311.47,0.00010959,2]
[342181452,1731555758588,259.56,0.00010959,2]
[342181453,1731555769081,216.3,0.00010959,2]
[342181454,1731555779561,180.25,0.00010959,2]
[342181455,1731555790616,150.21,0.00010959,2]
[342181456,1731555801103,751.05,0.00010959,2]
[342181457,1731555870163,402.3752537,0.00015957,2]
[342181513,1731556109995,182.7391164,0.00013973,2]
[342181516,1731556162121,24900.0,0.00015925,2]
[342181573,1731556238843,-197.85325406,0.00016208,2]
[342181574,1731556238853,-159.5951741,0.00016308,2]
[342181575,1731556238864,-300.0,0.00016851,2]
[342181576,1731556238874,-300.0,0.00016851,2]
[342181577,1731556238884,-17304.89840701,0.00016852,2]
[342181578,1731556238893,-328.8617166,0.00016947,2]
[342181579,1731556238903,-500.0,0.00016947,2]
[342181580,1731556238912,-500.0,0.00016947,2]
[342181581,1731556238922,-500.0,0.00016947,2]
[342181582,1731556238931,-500.0,0.00016947,2]
[342181583,1731556238941,-626.38687478,0.00016947,2]
[342181584,1731556238951,-500.0,0.00016947,2]
[342181585,1731556238960,-500.0,0.00016947,2]
[342181586,1731556238969,-500.0,0.00016947,2]
[342181587,1731556238979,-500.0,0.00016947,2]
[342181588,1731556238988,-500.0,0.00016947,2]
[342181589,1731556238997,-500.0,0.00016947,2]
[342181590,1731556239007,-500.0,0.00016947,2]
[342181591,1731556239016,-258.35622966,0.00016947,2]
[342181592,1731556239026,-500.0,0.00016947,2]
[342181593,1731556239035,-500.0,0.00016947,2]
[342181594,1731556239045,-500.0,0.00016947,2]
[342181595,1731556239054,-265.85447931,0.00016947,2]
[342181596,1731556239064,-553.56667881,0.00016947,2]
[342181597,1731556239073,-500.0,0.00016947,2]
[342181598,1731556239082,-500.0,0.00016947,2]
[342181599,1731556239092,-500.0,0.00016947,2]
[342181600,1731556239101,-500.0,0.00016947,2]
[342181601,1731556239111,-500.0,0.00016947,2]
[342181602,1731556239120,-500.0,0.00016947,2]
[342181603,1731556239130,-500.0,0.00016947,2]
[342181604,1731556239140,-266.6093408,0.00016947,2]
[342181605,1731556239149,-500.0,0.00016947,2]
[342181606,1731556239159,-380.36612373,0.00016947,2]
[342181607,1731556239168,-500.0,0.00016947,2]
[342181608,1731556239178,-177.81602941,0.00016947,2]
[342181609,1731556239187,-500.0,0.00016947,2]
[342181610,1731556239197,-500.0,0.00016947,2]
[342181611,1731556239206,-500.0,0.00016947,2]
[342181612,1731556239216,-500.0,0.00016947,2]
[342181613,1731556239225,-500.0,0.00016947,2]
[342181614,1731556239235,-500.0,0.00016947,2]
[342181615,1731556239245,-500.0,0.00016947,2]
[342181616,1731556239255,-500.0,0.00016947,2]
[342181617,1731556239265,-500.0,0.00016947,2]
[342181618,1731556239275,-500.0,0.00016947,2]
[342181619,1731556239284,-500.0,0.00016947,2]
[342181620,1731556239294,-500.0,0.00016947,2]
[342181621,1731556239305,-500.0,0.00016947,2]
[342181622,1731556239314,-500.0,0.00016947,2]
[342181623,1731556239323,-500.0,0.00016947,2]
[342181624,1731556239333,-500.0,0.00016947,2]
[342181625,1731556239342,-500.0,0.00016947,2]
[342181626,1731556239352,-500.0,0.00016947,2]
[342181627,1731556239361,-500.0,0.00016947,2]
[342181628,1731556239370,-500.0,0.00016947,2]
[342181629,1731556239380,-500.0,0.00016947,2]
[342181630,1731556239389,-500.0,0.00016947,2]
[342181631,1731556239399,-500.0,0.00016947,2]
[342181632,1731556239410,-500.0,0.00016947,2]
[342181633,1731556239420,-222.411519,0.00016948,2]
[342181634,1731556239430,-222.411519,0.00016948,2]
[342181635,1731556239440,-222.411519,0.00016948,2]
[342181636,1731556239450,-222.411519,0.00016948,2]
[342181637,1731556239460,-222.411519,0.00016948,2]
[342181638,1731556239470,-222.411519,0.00016948,2]
[342181639,1731556239479,-222.411519,0.00016948,2]
[342181640,1731556239489,-222.411519,0.00016948,2]
[342181641,1731556239498,-222.411519,0.00016948,2]
[342181642,1731556239507,-222.411519,0.00016948,2]
[342181643,1731556239516,-222.411519,0.00016948,2]
[342181644,1731556239525,-222.411519,0.00016948,2]
[342181645,1731556239534,-222.411519,0.00016948,2]
[342181646,1731556239544,-222.411519,0.00016948,2]
[342181647,1731556239553,-222.411519,0.00016948,2]
[342181648,1731556239562,-222.411519,0.00016948,2]
[342181649,1731556239571,-151.0,0.00016948,2]
[342181650,1731556239580,-151.0,0.00016948,2]
[342181651,1731556239590,-151.0,0.00016948,2]
[342181652,1731556239599,-153.289327,0.00016948,2]
[342181653,1731556239609,-151.0,0.00016948,2]
[342181654,1731556239619,-152.0,0.00016949,2]
[342181655,1731556239742,-151.0,0.0001695,2]
[342181656,1731556239753,-151.0,0.0001695,2]
[342181657,1731556239763,-151.0,0.0001695,2]
[342181658,1731556239772,-151.0,0.0001695,2]
[342181659,1731556239782,-151.0,0.0001695,2]
[342181660,1731556239791,-182.257847,0.0001695,2]
[342181661,1731556239801,-151.0,0.0001695,2]
[342181662,1731556239810,-151.0,0.0001695,2]
[342181663,1731556239823,-151.0,0.0001695,2]
[342181664,1731556239833,-151.0,0.0001695,2]
[342181665,1731556239842,-151.0,0.0001695,2]
[342181666,1731556239852,-151.0,0.0001695,2]
[342181667,1731556239862,-151.0,0.0001695,2]
[342181668,1731556239874,-151.0,0.0001695,2]
[342181670,1731556239885,-151.0,0.0001695,2]
[342181672,1731556239895,-151.0,0.0001695,2]
[342181673,1731556239906,-151.0,0.0001695,2]
[342181674,1731556239916,-151.0,0.0001695,2]
[342181675,1731556239926,-151.0,0.0001695,2]
[342181676,1731556239935,-151.0,0.0001695,2]
[342181677,1731556239945,-151.0,0.0001695,2]
[342181678,1731556239955,-151.0,0.0001695,2]
[342181680,1731556239965,-151.0,0.0001695,2]
[342181682,1731556239975,-151.0,0.0001695,2]
[342181684,1731556239984,-151.0,0.0001695,2]
[342181686,1731556239994,-151.0,0.0001695,2]
[342181687,1731556240004,-156.004668,0.0001695,2]
[342181689,1731556240014,-151.0,0.0001695,2]
[342181691,1731556240023,-151.0,0.0001695,2]
[342181693,1731556240032,-151.0,0.0001695,2]
[342181695,1731556240042,-151.0,0.0001695,2]
[342181697,1731556240051,-151.0,0.0001695,2]
[342181699,1731556240061,-151.0,0.0001695,2]
[342181701,1731556240071,-151.0,0.0001695,2]
[342181703,1731556240081,-151.0,0.0001695,2]
[342181705,1731556240093,-151.0,0.0001695,2]
[342181707,1731556240108,-151.0,0.0001695,2]
[342181709,1731556240118,-151.0,0.0001695,2]
[342181711,1731556240128,-205.055236,0.0001695,2]
[342181713,1731556240137,-621.256086,0.0001695,2]
[342181715,1731556240147,-621.256086,0.0001695,2]
[342181717,1731556240157,-621.256086,0.0001695,2]
[342181719,1731556240166,-621.256086,0.0001695,2]
[342181721,1731556240176,-621.256086,0.0001695,2]
[342181723,1731556240186,-621.256086,0.0001695,2]
[342181727,1731556240205,-621.256086,0.0001695,2]
[342181729,1731556240216,-621.256086,0.0001695,2]
[342181731,1731556240226,-621.256086,0.0001695,2]
[342181733,1731556240237,-621.256086,0.0001695,2]
[342181735,1731556240248,-621.256086,0.0001695,2]
[342181737,1731556240258,-621.256086,0.0001695,2]
[342181739,1731556240269,-621.256086,0.0001695,2]
[342181741,1731556240279,-621.256086,0.0001695,2]
[342181743,1731556240290,-621.256086,0.0001695,2]
[342181745,1731556240301,-621.256086,0.0001695,2]
[342181747,1731556240321,-621.256086,0.0001695,2]
[342181749,1731556240341,-621.256086,0.0001695,2]
[342181751,1731556240361,-621.256086,0.0001695,2]
[342181753,1731556240381,-621.256095,0.0001695,2]
[342181755,1731556240398,-343.36209164,0.00016951,2]
[342181757,1731556240409,-366.19202287,0.00016951,2]
[342181759,1731556240419,-293.95306114,0.00016951,2]
[342181761,1731556240429,-500.0,0.00016951,2]
[342181763,1731556240439,-291.0989561,0.00016951,2]
[342181765,1731556240451,-299.02003382,0.00016951,2]
[342181768,1731556240461,-468.80629488,0.00016951,2]
[342181770,1731556240470,-500.0,0.00016951,2]
[342181772,1731556240481,-151.0,0.00016951,2]
[342181774,1731556240491,-151.0,0.00016951,2]
[342181776,1731556240500,-151.0,0.00016951,2]
[342181778,1731556240510,-151.0,0.00016951,2]
[342181780,1731556240519,-151.0,0.00016951,2]
[342181782,1731556240529,-151.0,0.00016951,2]
[342181784,1731556240539,-151.0,0.00016951,2]
[342181786,1731556240548,-151.0,0.00016951,2]
[342181788,1731556240558,-151.0,0.00016951,2]
[342181790,1731556240567,-151.0,0.00016951,2]
[342181792,1731556240577,-151.0,0.00016951,2]
[342181794,1731556240587,-151.0,0.00016951,2]
[342181796,1731556240597,-151.0,0.00016951,2]
[342181798,1731556240606,-175.146369,0.00016951,2]
[342181800,1731556240616,-151.0,0.00016951,2]
[342181802,1731556240625,-151.0,0.00016951,2]
[342181804,1731556240635,-151.0,0.00016951,2]
[342181806,1731556240644,-151.0,0.00016951,2]
[342181808,1731556240653,-151.0,0.00016951,2]
[342181810,1731556240663,-155.750369,0.00016951,2]
[342181812,1731556240672,-297.115971,0.00016951,2]
[342181814,1731556240682,-151.0,0.00016951,2]
[342181816,1731556240692,-151.0,0.00016951,2]
[342181818,1731556240701,-159.574477,0.00016951,2]
[342181820,1731556240711,-222.411519,0.00016951,2]
[342181822,1731556240720,-222.411519,0.00016951,2]
[342181823,1731556240730,-3384761.8775188,0.00016952,2]
[342181843,1731556244300,-135.63567987,0.00016948,2]
[342181845,1731556244312,-2138.34055091,0.00016948,2]
[342181847,1731556244322,-4472.49702928,0.00016952,2]
[342181870,1731556706600,287.103711,0.0001589,2]
[342181871,1731556807491,163.221241,0.00013973,2]
[342181872,1731557029872,24900.0,0.00015889,2]
[342181873,1731557160150,276.5469846,0.00015878,2]
[342181880,1731557253725,530.722677,0.00015881,2]
[342181953,1731557432880,-157.16374393,0.00016108,2]
[342181954,1731557432890,-951.83384145,0.00016525,2]
[342181955,1731557432902,-3023.10880517,0.00016525,2]
[342182093,1731557440594,-3260.61895821,0.00016525,2]
[342182094,1731557440603,-300.0,0.00016872,2]
[342182095,1731557440613,-300.0,0.00016872,2]
[342182096,1731557440623,-898.02806679,0.00016873,2]
[342182134,1731557597024,324.341302,0.00015941,2]
[342182135,1731557597342,324.341302,0.00015945,2]